Workbook

Sheet Қаңтар
A1: ҚАҢТАР
A2: Желідегі сатулар | C2: Аукцион идентификаторы | D2: Тауар сипаттамасы | E2: Сатып алу бағасы | F2: Сату бағасы | G2: Желідегі төлемдер | H2: Басқа төлемдері | I2: Несиелік карталар төлемдері | J2: Жеткізу төлемдері | K2: Жеткізу төлемдері2 | L2: Сатулар пайдасы/шығыны | M2: Тасымалдау пайдасы/шығыны | N2: Жалпы пайда/шығын
A3: Жыл | C3: TS001 | D3: 1-элемент | E3: Т5.00 | F3: Т4.00 | G3: Т2.00 | H3: Т1.50 | I3: Т0.00 | J3: Т4.00 | K3: Т2.00 | L3: =IFERROR(JanuarySales[Сату бағасы]-(JanuarySales[Сатып алу бағасы]+JanuarySales[Желідегі төлемдер]+JanuarySales[Басқа төлемдері]+JanuarySales[Несиелік карталар төлемдері]),"") -> -Т4.50 | M3: =JanuarySales[Жеткізу төлемдері]-JanuarySales[Жеткізу төлемдері2] -> Т2.00 | N3: =JanuarySales[Сатулар пайдасы/шығыны]+JanuarySales[Тасымалдау пайдасы/шығыны] -> -Т2.50
A4: 2012 | C4: TP004 | D4: 2-элемент | E4: Т2.00 | F4: Т30.00 | G4: Т0.50 | H4: Т0.50 | J4: Т4.00 | K4: Т5.50 | L4: =IFERROR(JanuarySales[Сату бағасы]-(JanuarySales[Сатып алу бағасы]+JanuarySales[Желідегі төлемдер]+JanuarySales[Басқа төлемдері]+JanuarySales[Несиелік карталар төлемдері]),"") -> Т27.00 | M4: =JanuarySales[Жеткізу төлемдері]-JanuarySales[Жеткізу төлемдері2] -> -Т1.50 | N4: =JanuarySales[Сатулар пайдасы/шығыны]+JanuarySales[Тасымалдау пайдасы/шығыны] -> Т25.50
C5: RS99 | D5: 3-элемент | E5: Т17.00 | F5: Т23.00 | G5: Т2.00 | I5: Т2.00 | J5: Т3.00 | K5: Т2.00 | L5: =IFERROR(JanuarySales[Сату бағасы]-(JanuarySales[Сатып алу бағасы]+JanuarySales[Желідегі төлемдер]+JanuarySales[Басқа төлемдері]+JanuarySales[Несиелік карталар төлемдері]),"") -> Т2.00 | M5: =JanuarySales[Жеткізу төлемдері]-JanuarySales[Жеткізу төлемдері2] -> Т1.00 | N5: =JanuarySales[Сатулар пайдасы/шығыны]+JanuarySales[Тасымалдау пайдасы/шығыны] -> Т3.00
A6: Жалпы пайда/шығын | C6: ST001 | D6: 4-элемент | E6: Т120.00 | F6: Т180.00 | G6: Т2.00 | H6: Т1.50 | J6: Т3.00 | K6: Т2.00 | L6: =IFERROR(JanuarySales[Сату бағасы]-(JanuarySales[Сатып алу бағасы]+JanuarySales[Желідегі төлемдер]+JanuarySales[Басқа төлемдері]+JanuarySales[Несиелік карталар төлемдері]),"") -> Т56.50 | M6: =JanuarySales[Жеткізу төлемдері]-JanuarySales[Жеткізу төлемдері2] -> Т1.00 | N6: =JanuarySales[Сатулар пайдасы/шығыны]+JanuarySales[Тасымалдау пайдасы/шығыны] -> Т57.50
A7: =JanuarySales[[#Totals],[Жалпы пайда/шығын]] -> Т89.00 | C7: ST001 | D7: 5-элемент | E7: Т10.00 | F7: Т12.00 | G7: Т2.00 | H7: Т1.50 | J7: Т14.00 | K7: Т7.00 | L7: =IFERROR(JanuarySales[Сату бағасы]-(JanuarySales[Сатып алу бағасы]+JanuarySales[Желідегі төлемдер]+JanuarySales[Басқа төлемдері]+JanuarySales[Несиелік карталар төлемдері]),"") -> -Т1.50 | M7: =JanuarySales[Жеткізу төлемдері]-JanuarySales[Жеткізу төлемдері2] -> Т7.00 | N7: =JanuarySales[Сатулар пайдасы/шығыны]+JanuarySales[Тасымалдау пайдасы/шығыны] -> Т5.50
C8: Қорытынды | D8: ="Сатылған тауарлар: "&SUBTOTAL(103,JanuarySales[Тауар сипаттамасы]) -> Сатылған тауарлар: 5 | E8: =SUBTOTAL(109,JanuarySales[Сатып алу бағасы]) -> Т154.00 | F8: =SUBTOTAL(109,JanuarySales[Сату бағасы]) -> Т249.00 | G8: =SUBTOTAL(109,JanuarySales[Желідегі төлемдер]) -> Т8.50 | H8: =SUBTOTAL(109,JanuarySales[Басқа төлемдері]) -> Т5.00 | I8: =SUBTOTAL(109,JanuarySales[Несиелік карталар төлемдері]) -> Т2.00 | J8: =SUBTOTAL(109,JanuarySales[Жеткізу төлемдері]) -> Т28.00 | K8: =SUBTOTAL(109,JanuarySales[Жеткізу төлемдері2]) -> Т18.50 | L8: =SUBTOTAL(109,JanuarySales[Сатулар пайдасы/шығыны]) -> Т79.50 | M8: =SUBTOTAL(109,JanuarySales[Тасымалдау пайдасы/шығыны]) -> Т9.50 | N8: =SUBTOTAL(109,JanuarySales[Жалпы пайда/шығын]) -> Т89.00
A9: Пайда/шығын бағыты

Sheet Ақпан
A1: АҚПАН
A2: Желідегі сатулар | C2: Аукцион идентификаторы | D2: Тауар сипаттамасы | E2: Сатып алу бағасы | F2: Сату бағасы | G2: Желідегі төлемдер | H2: Басқа төлемдері | I2: Несиелік карталар төлемдері | J2: Жеткізу төлемдері | K2: Жеткізу төлемдері2 | L2: Сатулар пайдасы/шығыны | M2: Тасымалдау пайдасы/шығыны | N2: Жалпы пайда/шығын
A3: Жыл | C3: TS020 | D3: 1-элемент | E3: Т10.00 | F3: Т175.00 | G3: Т3.00 | H3: Т1.50 | I3: Т0.00 | J3: Т7.00 | K3: Т5.00 | L3: =IFERROR(FebruarySales[Сату бағасы]-(FebruarySales[Сатып алу бағасы]+FebruarySales[Желідегі төлемдер]+FebruarySales[Басқа төлемдері]+FebruarySales[Несиелік карталар төлемдері]),"") -> Т160.50 | M3: =FebruarySales[Жеткізу төлемдері]-FebruarySales[Жеткізу төлемдері2] -> Т2.00 | N3: =FebruarySales[Сатулар пайдасы/шығыны]+FebruarySales[Тасымалдау пайдасы/шығыны] -> Т162.50
A4: =SalesYear -> 2012 | C4: TS021 | D4: 2-элемент | E4: Т32.00 | F4: Т100.00 | G4: Т3.00 | I4: Т3.20 | J4: Т20.00 | K4: Т13.00 | L4: =IFERROR(FebruarySales[Сату бағасы]-(FebruarySales[Сатып алу бағасы]+FebruarySales[Желідегі төлемдер]+FebruarySales[Басқа төлемдері]+FebruarySales[Несиелік карталар төлемдері]),"") -> Т61.80 | M4: =FebruarySales[Жеткізу төлемдері]-FebruarySales[Жеткізу төлемдері2] -> Т7.00 | N4: =FebruarySales[Сатулар пайдасы/шығыны]+FebruarySales[Тасымалдау пайдасы/шығыны] -> Т68.80
C5: TS022 | D5: 3-элемент | E5: Т3.00 | F5: Т7.00 | G5: Т2.00 | I5: Т2.00 | J5: Т0.50 | K5: Т1.20 | L5: =IFERROR(FebruarySales[Сату бағасы]-(FebruarySales[Сатып алу бағасы]+FebruarySales[Желідегі төлемдер]+FebruarySales[Басқа төлемдері]+FebruarySales[Несиелік карталар төлемдері]),"") -> Т0.00 | M5: =FebruarySales[Жеткізу төлемдері]-FebruarySales[Жеткізу төлемдері2] -> -Т0.70 | N5: =FebruarySales[Сатулар пайдасы/шығыны]+FebruarySales[Тасымалдау пайдасы/шығыны] -> -Т0.70
A6: Жалпы пайда/шығын | C6: TS023 | D6: 4-элемент | E6: Т22.00 | F6: Т18.00 | G6: Т3.00 | H6: Т1.50 | J6: Т7.00 | K6: Т10.00 | L6: =IFERROR(FebruarySales[Сату бағасы]-(FebruarySales[Сатып алу бағасы]+FebruarySales[Желідегі төлемдер]+FebruarySales[Басқа төлемдері]+FebruarySales[Несиелік карталар төлемдері]),"") -> -Т8.50 | M6: =FebruarySales[Жеткізу төлемдері]-FebruarySales[Жеткізу төлемдері2] -> -Т3.00 | N6: =FebruarySales[Сатулар пайдасы/шығыны]+FebruarySales[Тасымалдау пайдасы/шығыны] -> -Т11.50
A7: =FebruarySales[[#Totals],[Жалпы пайда/шығын]] -> Т224.60 | C7: TS024 | D7: 5-элемент | E7: Т10.00 | F7: Т12.00 | G7: Т2.00 | H7: Т1.50 | J7: Т14.00 | K7: Т7.00 | L7: =IFERROR(FebruarySales[Сату бағасы]-(FebruarySales[Сатып алу бағасы]+FebruarySales[Желідегі төлемдер]+FebruarySales[Басқа төлемдері]+FebruarySales[Несиелік карталар төлемдері]),"") -> -Т1.50 | M7: =FebruarySales[Жеткізу төлемдері]-FebruarySales[Жеткізу төлемдері2] -> Т7.00 | N7: =FebruarySales[Сатулар пайдасы/шығыны]+FebruarySales[Тасымалдау пайдасы/шығыны] -> Т5.50
C8: Қорытынды | D8: ="Сатылған тауарлар: "&SUBTOTAL(103,FebruarySales[Тауар сипаттамасы]) -> Сатылған тауарлар: 5 | E8: =SUBTOTAL(109,FebruarySales[Сатып алу бағасы]) -> Т77.00 | F8: =SUBTOTAL(109,FebruarySales[Сату бағасы]) -> Т312.00 | G8: =SUBTOTAL(109,FebruarySales[Желідегі төлемдер]) -> Т13.00 | H8: =SUBTOTAL(109,FebruarySales[Басқа төлемдері]) -> Т4.50 | I8: =SUBTOTAL(109,FebruarySales[Несиелік карталар төлемдері]) -> Т5.20 | J8: =SUBTOTAL(109,FebruarySales[Жеткізу төлемдері]) -> Т48.50 | K8: =SUBTOTAL(109,FebruarySales[Жеткізу төлемдері2]) -> Т36.20 | L8: =SUBTOTAL(109,FebruarySales[Сатулар пайдасы/шығыны]) -> Т212.30 | M8: =SUBTOTAL(109,FebruarySales[Тасымалдау пайдасы/шығыны]) -> Т12.30 | N8: =SUBTOTAL(109,FebruarySales[Жалпы пайда/шығын]) -> Т224.60
A9: Пайда/шығын бағыты

Sheet наурыз
A1: НАУРЫЗ
A2: Желідегі сатулар | C2: Аукцион идентификаторы | D2: Тауар сипаттамасы | E2: Сатып алу бағасы | F2: Сату бағасы | G2: Желідегі төлемдер | H2: Басқа төлемдері | I2: Несиелік карталар төлемдері | J2: Жеткізу төлемдері | K2: Жеткізу төлемдері2 | L2: Сатулар пайдасы/шығыны | M2: Тасымалдау пайдасы/шығыны | N2: Жалпы пайда/шығын
A3: Жыл | L3: =IFERROR(MarchSales[Сату бағасы]-(MarchSales[Сатып алу бағасы]+MarchSales[Желідегі төлемдер]+MarchSales[Басқа төлемдері]+MarchSales[Несиелік карталар төлемдері]),"") -> Т0.00 | M3: =MarchSales[Жеткізу төлемдері]-MarchSales[Жеткізу төлемдері2] -> Т0.00 | N3: =MarchSales[Сатулар пайдасы/шығыны]+MarchSales[Тасымалдау пайдасы/шығыны] -> Т0.00
A4: =SalesYear -> 2012 | L4: =IFERROR(MarchSales[Сату бағасы]-(MarchSales[Сатып алу бағасы]+MarchSales[Желідегі төлемдер]+MarchSales[Басқа төлемдері]+MarchSales[Несиелік карталар төлемдері]),"") -> Т0.00 | M4: =MarchSales[Жеткізу төлемдері]-MarchSales[Жеткізу төлемдері2] -> Т0.00 | N4: =MarchSales[Сатулар пайдасы/шығыны]+MarchSales[Тасымалдау пайдасы/шығыны] -> Т0.00
L5: =IFERROR(MarchSales[Сату бағасы]-(MarchSales[Сатып алу бағасы]+MarchSales[Желідегі төлемдер]+MarchSales[Басқа төлемдері]+MarchSales[Несиелік карталар төлемдері]),"") -> Т0.00 | M5: =MarchSales[Жеткізу төлемдері]-MarchSales[Жеткізу төлемдері2] -> Т0.00 | N5: =MarchSales[Сатулар пайдасы/шығыны]+MarchSales[Тасымалдау пайдасы/шығыны] -> Т0.00
A6: Жалпы пайда/шығын | L6: =IFERROR(MarchSales[Сату бағасы]-(MarchSales[Сатып алу бағасы]+MarchSales[Желідегі төлемдер]+MarchSales[Басқа төлемдері]+MarchSales[Несиелік карталар төлемдері]),"") -> Т0.00 | M6: =MarchSales[Жеткізу төлемдері]-MarchSales[Жеткізу төлемдері2] -> Т0.00 | N6: =MarchSales[Сатулар пайдасы/шығыны]+MarchSales[Тасымалдау пайдасы/шығыны] -> Т0.00
A7: =MarchSales[[#Totals],[Жалпы пайда/шығын]] -> Т0.00 | L7: =IFERROR(MarchSales[Сату бағасы]-(MarchSales[Сатып алу бағасы]+MarchSales[Желідегі төлемдер]+MarchSales[Басқа төлемдері]+MarchSales[Несиелік карталар төлемдері]),"") -> Т0.00 | M7: =MarchSales[Жеткізу төлемдері]-MarchSales[Жеткізу төлемдері2] -> Т0.00 | N7: =MarchSales[Сатулар пайдасы/шығыны]+MarchSales[Тасымалдау пайдасы/шығыны] -> Т0.00
C8: Қорытынды | D8: ="Сатылған тауарлар: "&SUBTOTAL(103,MarchSales[Тауар сипаттамасы]) -> Сатылған тауарлар: 0 | E8: =SUBTOTAL(109,MarchSales[Сатып алу бағасы]) -> Т0.00 | F8: =SUBTOTAL(109,MarchSales[Сату бағасы]) -> Т0.00 | G8: =SUBTOTAL(109,MarchSales[Желідегі төлемдер]) -> Т0.00 | H8: =SUBTOTAL(109,MarchSales[Басқа төлемдері]) -> Т0.00 | I8: =SUBTOTAL(109,MarchSales[Несиелік карталар төлемдері]) -> Т0.00 | J8: =SUBTOTAL(109,MarchSales[Жеткізу төлемдері]) -> Т0.00 | K8: =SUBTOTAL(109,MarchSales[Жеткізу төлемдері2]) -> Т0.00 | L8: =SUBTOTAL(109,MarchSales[Сатулар пайдасы/шығыны]) -> Т0.00 | M8: =SUBTOTAL(109,MarchSales[Тасымалдау пайдасы/шығыны]) -> Т0.00 | N8: =SUBTOTAL(109,MarchSales[Жалпы пайда/шығын]) -> Т0.00
A9: Пайда/шығын бағыты

Sheet сәуір
A1: СӘУІР
A2: Желідегі сатулар | C2: Аукцион идентификаторы | D2: Тауар сипаттамасы | E2: Сатып алу бағасы | F2: Сату бағасы | G2: Желідегі төлемдер | H2: Басқа төлемдері | I2: Несиелік карталар төлемдері | J2: Жеткізу төлемдері | K2: Жеткізу төлемдері2 | L2: Сатулар пайдасы/шығыны | M2: Тасымалдау пайдасы/шығыны | N2: Жалпы пайда/шығын
A3: Жыл | M3: =AprilSales[Жеткізу төлемдері]-AprilSales[Жеткізу төлемдері2] -> Т0.00 | N3: =AprilSales[Сатулар пайдасы/шығыны]+AprilSales[Тасымалдау пайдасы/шығыны] -> Т0.00
A4: =SalesYear -> 2012 | M4: =AprilSales[Жеткізу төлемдері]-AprilSales[Жеткізу төлемдері2] -> Т0.00 | N4: =AprilSales[Сатулар пайдасы/шығыны]+AprilSales[Тасымалдау пайдасы/шығыны] -> Т0.00
M5: =AprilSales[Жеткізу төлемдері]-AprilSales[Жеткізу төлемдері2] -> Т0.00 | N5: =AprilSales[Сатулар пайдасы/шығыны]+AprilSales[Тасымалдау пайдасы/шығыны] -> Т0.00
A6: Жалпы пайда/шығын | M6: =AprilSales[Жеткізу төлемдері]-AprilSales[Жеткізу төлемдері2] -> Т0.00 | N6: =AprilSales[Сатулар пайдасы/шығыны]+AprilSales[Тасымалдау пайдасы/шығыны] -> Т0.00
A7: =AprilSales[[#Totals],[Жалпы пайда/шығын]] -> Т0.00 | M7: =AprilSales[Жеткізу төлемдері]-AprilSales[Жеткізу төлемдері2] -> Т0.00 | N7: =AprilSales[Сатулар пайдасы/шығыны]+AprilSales[Тасымалдау пайдасы/шығыны] -> Т0.00
C8: Қорытынды | D8: ="Сатылған тауарлар: "&SUBTOTAL(103,AprilSales[Тауар сипаттамасы]) -> Сатылған тауарлар: 0 | E8: =SUBTOTAL(109,AprilSales[Сатып алу бағасы]) -> Т0.00 | F8: =SUBTOTAL(109,AprilSales[Сату бағасы]) -> Т0.00 | G8: =SUBTOTAL(109,AprilSales[Желідегі төлемдер]) -> Т0.00 | H8: =SUBTOTAL(109,AprilSales[Басқа төлемдері]) -> Т0.00 | I8: =SUBTOTAL(109,AprilSales[Несиелік карталар төлемдері]) -> Т0.00 | J8: =SUBTOTAL(109,AprilSales[Жеткізу төлемдері]) -> Т0.00 | K8: =SUBTOTAL(109,AprilSales[Жеткізу төлемдері2]) -> Т0.00 | L8: =SUBTOTAL(109,AprilSales[Сатулар пайдасы/шығыны]) -> Т0.00 | M8: =SUBTOTAL(109,AprilSales[Тасымалдау пайдасы/шығыны]) -> Т0.00 | N8: =SUBTOTAL(109,AprilSales[Жалпы пайда/шығын]) -> Т0.00
A9: Пайда/шығын бағыты

Sheet Мамыр
A1: МАМЫР
A2: Желідегі сатулар | C2: Аукцион идентификаторы | D2: Тауар сипаттамасы | E2: Сатып алу бағасы | F2: Сату бағасы | G2: Желідегі төлемдер | H2: Басқа төлемдері | I2: Несиелік карталар төлемдері | J2: Жеткізу төлемдері | K2: Жеткізу төлемдері2 | L2: Сатулар пайдасы/шығыны | M2: Тасымалдау пайдасы/шығыны | N2: Жалпы пайда/шығын
A3: Жыл | M3: =MaySales[Жеткізу төлемдері]-MaySales[Жеткізу төлемдері2] -> Т0.00 | N3: =MaySales[Сатулар пайдасы/шығыны]+MaySales[Тасымалдау пайдасы/шығыны] -> Т0.00
A4: =SalesYear -> 2012 | M4: =MaySales[Жеткізу төлемдері]-MaySales[Жеткізу төлемдері2] -> Т0.00 | N4: =MaySales[Сатулар пайдасы/шығыны]+MaySales[Тасымалдау пайдасы/шығыны] -> Т0.00
M5: =MaySales[Жеткізу төлемдері]-MaySales[Жеткізу төлемдері2] -> Т0.00 | N5: =MaySales[Сатулар пайдасы/шығыны]+MaySales[Тасымалдау пайдасы/шығыны] -> Т0.00
A6: Жалпы пайда/шығын | M6: =MaySales[Жеткізу төлемдері]-MaySales[Жеткізу төлемдері2] -> Т0.00 | N6: =MaySales[Сатулар пайдасы/шығыны]+MaySales[Тасымалдау пайдасы/шығыны] -> Т0.00
A7: =MaySales[[#Totals],[Жалпы пайда/шығын]] -> Т0.00 | M7: =MaySales[Жеткізу төлемдері]-MaySales[Жеткізу төлемдері2] -> Т0.00 | N7: =MaySales[Сатулар пайдасы/шығыны]+MaySales[Тасымалдау пайдасы/шығыны] -> Т0.00
C8: Қорытынды | D8: ="Сатылған тауарлар: "&SUBTOTAL(103,MaySales[Тауар сипаттамасы]) -> Сатылған тауарлар: 0 | E8: =SUBTOTAL(109,MaySales[Сатып алу бағасы]) -> Т0.00 | F8: =SUBTOTAL(109,MaySales[Сату бағасы]) -> Т0.00 | G8: =SUBTOTAL(109,MaySales[Желідегі төлемдер]) -> Т0.00 | H8: =SUBTOTAL(109,MaySales[Басқа төлемдері]) -> Т0.00 | I8: =SUBTOTAL(109,MaySales[Несиелік карталар төлемдері]) -> Т0.00 | J8: =SUBTOTAL(109,MaySales[Жеткізу төлемдері]) -> Т0.00 | K8: =SUBTOTAL(109,MaySales[Жеткізу төлемдері2]) -> Т0.00 | L8: =SUBTOTAL(109,MaySales[Сатулар пайдасы/шығыны]) -> Т0.00 | M8: =SUBTOTAL(109,MaySales[Тасымалдау пайдасы/шығыны]) -> Т0.00 | N8: =SUBTOTAL(109,MaySales[Жалпы пайда/шығын]) -> Т0.00
A9: Пайда/шығын бағыты

Sheet Маусым
A1: МАУСЫМ
A2: Желідегі сатулар | C2: Аукцион идентификаторы | D2: Тауар сипаттамасы | E2: Сатып алу бағасы | F2: Сату бағасы | G2: Желідегі төлемдер | H2: Басқа төлемдері | I2: Несиелік карталар төлемдері | J2: Жеткізу төлемдері | K2: Жеткізу төлемдері2 | L2: Сатулар пайдасы/шығыны | M2: Тасымалдау пайдасы/шығыны | N2: Жалпы пайда/шығын
A3: Жыл | M3: =JuneSales[Жеткізу төлемдері]-JuneSales[Жеткізу төлемдері2] -> Т0.00 | N3: =JuneSales[Сатулар пайдасы/шығыны]+JuneSales[Тасымалдау пайдасы/шығыны] -> Т0.00
A4: =SalesYear -> 2012 | M4: =JuneSales[Жеткізу төлемдері]-JuneSales[Жеткізу төлемдері2] -> Т0.00 | N4: =JuneSales[Сатулар пайдасы/шығыны]+JuneSales[Тасымалдау пайдасы/шығыны] -> Т0.00
M5: =JuneSales[Жеткізу төлемдері]-JuneSales[Жеткізу төлемдері2] -> Т0.00 | N5: =JuneSales[Сатулар пайдасы/шығыны]+JuneSales[Тасымалдау пайдасы/шығыны] -> Т0.00
A6: Жалпы пайда/шығын | M6: =JuneSales[Жеткізу төлемдері]-JuneSales[Жеткізу төлемдері2] -> Т0.00 | N6: =JuneSales[Сатулар пайдасы/шығыны]+JuneSales[Тасымалдау пайдасы/шығыны] -> Т0.00
A7: =JuneSales[[#Totals],[Жалпы пайда/шығын]] -> Т0.00 | M7: =JuneSales[Жеткізу төлемдері]-JuneSales[Жеткізу төлемдері2] -> Т0.00 | N7: =JuneSales[Сатулар пайдасы/шығыны]+JuneSales[Тасымалдау пайдасы/шығыны] -> Т0.00
C8: Қорытынды | D8: ="Сатылған тауарлар: "&SUBTOTAL(103,JuneSales[Тауар сипаттамасы]) -> Сатылған тауарлар: 0 | E8: =SUBTOTAL(109,JuneSales[Сатып алу бағасы]) -> Т0.00 | F8: =SUBTOTAL(109,JuneSales[Сату бағасы]) -> Т0.00 | G8: =SUBTOTAL(109,JuneSales[Желідегі төлемдер]) -> Т0.00 | H8: =SUBTOTAL(109,JuneSales[Басқа төлемдері]) -> Т0.00 | I8: =SUBTOTAL(109,JuneSales[Несиелік карталар төлемдері]) -> Т0.00 | J8: =SUBTOTAL(109,JuneSales[Жеткізу төлемдері]) -> Т0.00 | K8: =SUBTOTAL(109,JuneSales[Жеткізу төлемдері2]) -> Т0.00 | L8: =SUBTOTAL(109,JuneSales[Сатулар пайдасы/шығыны]) -> Т0.00 | M8: =SUBTOTAL(109,JuneSales[Тасымалдау пайдасы/шығыны]) -> Т0.00 | N8: =SUBTOTAL(109,JuneSales[Жалпы пайда/шығын]) -> Т0.00
A9: Пайда/шығын бағыты

Sheet Шілде
A1: ШІЛДЕ
A2: Желідегі сатулар | C2: Аукцион идентификаторы | D2: Тауар сипаттамасы | E2: Сатып алу бағасы | F2: Сату бағасы | G2: Желідегі төлемдер | H2: Басқа төлемдері | I2: Несиелік карталар төлемдері | J2: Жеткізу төлемдері | K2: Жеткізу төлемдері2 | L2: Сатулар пайдасы/шығыны | M2: Тасымалдау пайдасы/шығыны | N2: Жалпы пайда/шығын
A3: Жыл | M3: =JulySales[Жеткізу төлемдері]-JulySales[Жеткізу төлемдері2] -> Т0.00 | N3: =JulySales[Сатулар пайдасы/шығыны]+JulySales[Тасымалдау пайдасы/шығыны] -> Т0.00
A4: =SalesYear -> 2012 | M4: =JulySales[Жеткізу төлемдері]-JulySales[Жеткізу төлемдері2] -> Т0.00 | N4: =JulySales[Сатулар пайдасы/шығыны]+JulySales[Тасымалдау пайдасы/шығыны] -> Т0.00
M5: =JulySales[Жеткізу төлемдері]-JulySales[Жеткізу төлемдері2] -> Т0.00 | N5: =JulySales[Сатулар пайдасы/шығыны]+JulySales[Тасымалдау пайдасы/шығыны] -> Т0.00
A6: Жалпы пайда/шығын | M6: =JulySales[Жеткізу төлемдері]-JulySales[Жеткізу төлемдері2] -> Т0.00 | N6: =JulySales[Сатулар пайдасы/шығыны]+JulySales[Тасымалдау пайдасы/шығыны] -> Т0.00
A7: =JulySales[[#Totals],[Жалпы пайда/шығын]] -> Т0.00 | M7: =JulySales[Жеткізу төлемдері]-JulySales[Жеткізу төлемдері2] -> Т0.00 | N7: =JulySales[Сатулар пайдасы/шығыны]+JulySales[Тасымалдау пайдасы/шығыны] -> Т0.00
C8: Қорытынды | D8: ="Сатылған тауарлар: "&SUBTOTAL(103,JulySales[Тауар сипаттамасы]) -> Сатылған тауарлар: 0 | E8: =SUBTOTAL(109,JulySales[Сатып алу бағасы]) -> Т0.00 | F8: =SUBTOTAL(109,JulySales[Сату бағасы]) -> Т0.00 | G8: =SUBTOTAL(109,JulySales[Желідегі төлемдер]) -> Т0.00 | H8: =SUBTOTAL(109,JulySales[Басқа төлемдері]) -> Т0.00 | I8: =SUBTOTAL(109,JulySales[Несиелік карталар төлемдері]) -> Т0.00 | J8: =SUBTOTAL(109,JulySales[Жеткізу төлемдері]) -> Т0.00 | K8: =SUBTOTAL(109,JulySales[Жеткізу төлемдері2]) -> Т0.00 | L8: =SUBTOTAL(109,JulySales[Сатулар пайдасы/шығыны]) -> Т0.00 | M8: =SUBTOTAL(109,JulySales[Тасымалдау пайдасы/шығыны]) -> Т0.00 | N8: =SUBTOTAL(109,JulySales[Жалпы пайда/шығын]) -> Т0.00
A9: Пайда/шығын бағыты

Sheet Тамыз
A1: ТАМЫЗ
A2: Желідегі сатулар | C2: Аукцион идентификаторы | D2: Тауар сипаттамасы | E2: Сатып алу бағасы | F2: Сату бағасы | G2: Желідегі төлемдер | H2: Басқа төлемдері | I2: Несиелік карталар төлемдері | J2: Жеткізу төлемдері | K2: Жеткізу төлемдері2 | L2: Сатулар пайдасы/шығыны | M2: Тасымалдау пайдасы/шығыны | N2: Жалпы пайда/шығын
A3: Жыл | M3: =AugustSales[Жеткізу төлемдері]-AugustSales[Жеткізу төлемдері2] -> Т0.00 | N3: =AugustSales[Сатулар пайдасы/шығыны]+AugustSales[Тасымалдау пайдасы/шығыны] -> Т0.00
A4: =SalesYear -> 2012 | M4: =AugustSales[Жеткізу төлемдері]-AugustSales[Жеткізу төлемдері2] -> Т0.00 | N4: =AugustSales[Сатулар пайдасы/шығыны]+AugustSales[Тасымалдау пайдасы/шығыны] -> Т0.00
M5: =AugustSales[Жеткізу төлемдері]-AugustSales[Жеткізу төлемдері2] -> Т0.00 | N5: =AugustSales[Сатулар пайдасы/шығыны]+AugustSales[Тасымалдау пайдасы/шығыны] -> Т0.00
A6: Жалпы пайда/шығын | M6: =AugustSales[Жеткізу төлемдері]-AugustSales[Жеткізу төлемдері2] -> Т0.00 | N6: =AugustSales[Сатулар пайдасы/шығыны]+AugustSales[Тасымалдау пайдасы/шығыны] -> Т0.00
A7: =AugustSales[[#Totals],[Жалпы пайда/шығын]] -> Т0.00 | M7: =AugustSales[Жеткізу төлемдері]-AugustSales[Жеткізу төлемдері2] -> Т0.00 | N7: =AugustSales[Сатулар пайдасы/шығыны]+AugustSales[Тасымалдау пайдасы/шығыны] -> Т0.00
C8: Қорытынды | D8: ="Сатылған тауарлар: "&SUBTOTAL(103,AugustSales[Тауар сипаттамасы]) -> Сатылған тауарлар: 0 | E8: =SUBTOTAL(109,AugustSales[Сатып алу бағасы]) -> Т0.00 | F8: =SUBTOTAL(109,AugustSales[Сату бағасы]) -> Т0.00 | G8: =SUBTOTAL(109,AugustSales[Желідегі төлемдер]) -> Т0.00 | H8: =SUBTOTAL(109,AugustSales[Басқа төлемдері]) -> Т0.00 | I8: =SUBTOTAL(109,AugustSales[Несиелік карталар төлемдері]) -> Т0.00 | J8: =SUBTOTAL(109,AugustSales[Жеткізу төлемдері]) -> Т0.00 | K8: =SUBTOTAL(109,AugustSales[Жеткізу төлемдері2]) -> Т0.00 | L8: =SUBTOTAL(109,AugustSales[Сатулар пайдасы/шығыны]) -> Т0.00 | M8: =SUBTOTAL(109,AugustSales[Тасымалдау пайдасы/шығыны]) -> Т0.00 | N8: =SUBTOTAL(109,AugustSales[Жалпы пайда/шығын]) -> Т0.00
A9: Пайда/шығын бағыты

Sheet Қыркүйек
A1: ҚЫРКҮЙЕК
A2: Желідегі сатулар | C2: Аукцион идентификаторы | D2: Тауар сипаттамасы | E2: Сатып алу бағасы | F2: Сату бағасы | G2: Желідегі төлемдер | H2: Басқа төлемдері | I2: Несиелік карталар төлемдері | J2: Жеткізу төлемдері | K2: Жеткізу төлемдері2 | L2: Сатулар пайдасы/шығыны | M2: Тасымалдау пайдасы/шығыны | N2: Жалпы пайда/шығын
A3: Жыл | M3: =SeptemberSales[Жеткізу төлемдері]-SeptemberSales[Жеткізу төлемдері2] -> Т0.00 | N3: =SeptemberSales[Сатулар пайдасы/шығыны]+SeptemberSales[Тасымалдау пайдасы/шығыны] -> Т0.00
A4: =SalesYear -> 2012 | M4: =SeptemberSales[Жеткізу төлемдері]-SeptemberSales[Жеткізу төлемдері2] -> Т0.00 | N4: =SeptemberSales[Сатулар пайдасы/шығыны]+SeptemberSales[Тасымалдау пайдасы/шығыны] -> Т0.00
M5: =SeptemberSales[Жеткізу төлемдері]-SeptemberSales[Жеткізу төлемдері2] -> Т0.00 | N5: =SeptemberSales[Сатулар пайдасы/шығыны]+SeptemberSales[Тасымалдау пайдасы/шығыны] -> Т0.00
A6: Жалпы пайда/шығын | M6: =SeptemberSales[Жеткізу төлемдері]-SeptemberSales[Жеткізу төлемдері2] -> Т0.00 | N6: =SeptemberSales[Сатулар пайдасы/шығыны]+SeptemberSales[Тасымалдау пайдасы/шығыны] -> Т0.00
A7: =SeptemberSales[[#Totals],[Жалпы пайда/шығын]] -> Т0.00 | M7: =SeptemberSales[Жеткізу төлемдері]-SeptemberSales[Жеткізу төлемдері2] -> Т0.00 | N7: =SeptemberSales[Сатулар пайдасы/шығыны]+SeptemberSales[Тасымалдау пайдасы/шығыны] -> Т0.00
C8: Қорытынды | D8: ="Сатылған тауарлар: "&SUBTOTAL(103,SeptemberSales[Тауар сипаттамасы]) -> Сатылған тауарлар: 0 | E8: =SUBTOTAL(109,SeptemberSales[Сатып алу бағасы]) -> Т0.00 | F8: =SUBTOTAL(109,SeptemberSales[Сату бағасы]) -> Т0.00 | G8: =SUBTOTAL(109,SeptemberSales[Желідегі төлемдер]) -> Т0.00 | H8: =SUBTOTAL(109,SeptemberSales[Басқа төлемдері]) -> Т0.00 | I8: =SUBTOTAL(109,SeptemberSales[Несиелік карталар төлемдері]) -> Т0.00 | J8: =SUBTOTAL(109,SeptemberSales[Жеткізу төлемдері]) -> Т0.00 | K8: =SUBTOTAL(109,SeptemberSales[Жеткізу төлемдері2]) -> Т0.00 | L8: =SUBTOTAL(109,SeptemberSales[Сатулар пайдасы/шығыны]) -> Т0.00 | M8: =SUBTOTAL(109,SeptemberSales[Тасымалдау пайдасы/шығыны]) -> Т0.00 | N8: =SUBTOTAL(109,SeptemberSales[Жалпы пайда/шығын]) -> Т0.00
A9: Пайда/шығын бағыты

Sheet Қазан
A1: ҚАЗАН
A2: Желідегі сатулар | C2: Аукцион идентификаторы | D2: Тауар сипаттамасы | E2: Сатып алу бағасы | F2: Сату бағасы | G2: Желідегі төлемдер | H2: Басқа төлемдері | I2: Несиелік карталар төлемдері | J2: Жеткізу төлемдері | K2: Жеткізу төлемдері2 | L2: Сатулар пайдасы/шығыны | M2: Тасымалдау пайдасы/шығыны | N2: Жалпы пайда/шығын
A3: Жыл | M3: =OctoberSales[Жеткізу төлемдері]-OctoberSales[Жеткізу төлемдері2] -> Т0.00 | N3: =OctoberSales[Сатулар пайдасы/шығыны]+OctoberSales[Тасымалдау пайдасы/шығыны] -> Т0.00
A4: =SalesYear -> 2012 | M4: =OctoberSales[Жеткізу төлемдері]-OctoberSales[Жеткізу төлемдері2] -> Т0.00 | N4: =OctoberSales[Сатулар пайдасы/шығыны]+OctoberSales[Тасымалдау пайдасы/шығыны] -> Т0.00
M5: =OctoberSales[Жеткізу төлемдері]-OctoberSales[Жеткізу төлемдері2] -> Т0.00 | N5: =OctoberSales[Сатулар пайдасы/шығыны]+OctoberSales[Тасымалдау пайдасы/шығыны] -> Т0.00
A6: Жалпы пайда/шығын | M6: =OctoberSales[Жеткізу төлемдері]-OctoberSales[Жеткізу төлемдері2] -> Т0.00 | N6: =OctoberSales[Сатулар пайдасы/шығыны]+OctoberSales[Тасымалдау пайдасы/шығыны] -> Т0.00
A7: =OctoberSales[[#Totals],[Жалпы пайда/шығын]] -> Т0.00 | M7: =OctoberSales[Жеткізу төлемдері]-OctoberSales[Жеткізу төлемдері2] -> Т0.00 | N7: =OctoberSales[Сатулар пайдасы/шығыны]+OctoberSales[Тасымалдау пайдасы/шығыны] -> Т0.00
C8: Қорытынды | D8: ="Сатылған тауарлар: "&SUBTOTAL(103,OctoberSales[Тауар сипаттамасы]) -> Сатылған тауарлар: 0 | E8: =SUBTOTAL(109,OctoberSales[Сатып алу бағасы]) -> Т0.00 | F8: =SUBTOTAL(109,OctoberSales[Сату бағасы]) -> Т0.00 | G8: =SUBTOTAL(109,OctoberSales[Желідегі төлемдер]) -> Т0.00 | H8: =SUBTOTAL(109,OctoberSales[Басқа төлемдері]) -> Т0.00 | I8: =SUBTOTAL(109,OctoberSales[Несиелік карталар төлемдері]) -> Т0.00 | J8: =SUBTOTAL(109,OctoberSales[Жеткізу төлемдері]) -> Т0.00 | K8: =SUBTOTAL(109,OctoberSales[Жеткізу төлемдері2]) -> Т0.00 | L8: =SUBTOTAL(109,OctoberSales[Сатулар пайдасы/шығыны]) -> Т0.00 | M8: =SUBTOTAL(109,OctoberSales[Тасымалдау пайдасы/шығыны]) -> Т0.00 | N8: =SUBTOTAL(109,OctoberSales[Жалпы пайда/шығын]) -> Т0.00
A9: Пайда/шығын бағыты

Sheet Қараша
A1: ҚАРАША
A2: Желідегі сатулар | C2: Аукцион идентификаторы | D2: Тауар сипаттамасы | E2: Сатып алу бағасы | F2: Сату бағасы | G2: Желідегі төлемдер | H2: Басқа төлемдері | I2: Несиелік карталар төлемдері | J2: Жеткізу төлемдері | K2: Жеткізу төлемдері2 | L2: Сатулар пайдасы/шығыны | M2: Тасымалдау пайдасы/шығыны | N2: Жалпы пайда/шығын
A3: Жыл | M3: =NovemberSales[Жеткізу төлемдері]-NovemberSales[Жеткізу төлемдері2] -> Т0.00 | N3: =NovemberSales[Сатулар пайдасы/шығыны]+NovemberSales[Тасымалдау пайдасы/шығыны] -> Т0.00
A4: =SalesYear -> 2012 | M4: =NovemberSales[Жеткізу төлемдері]-NovemberSales[Жеткізу төлемдері2] -> Т0.00 | N4: =NovemberSales[Сатулар пайдасы/шығыны]+NovemberSales[Тасымалдау пайдасы/шығыны] -> Т0.00
M5: =NovemberSales[Жеткізу төлемдері]-NovemberSales[Жеткізу төлемдері2] -> Т0.00 | N5: =NovemberSales[Сатулар пайдасы/шығыны]+NovemberSales[Тасымалдау пайдасы/шығыны] -> Т0.00
A6: Жалпы пайда/шығын | M6: =NovemberSales[Жеткізу төлемдері]-NovemberSales[Жеткізу төлемдері2] -> Т0.00 | N6: =NovemberSales[Сатулар пайдасы/шығыны]+NovemberSales[Тасымалдау пайдасы/шығыны] -> Т0.00
A7: =NovemberSales[[#Totals],[Жалпы пайда/шығын]] -> Т0.00 | M7: =NovemberSales[Жеткізу төлемдері]-NovemberSales[Жеткізу төлемдері2] -> Т0.00 | N7: =NovemberSales[Сатулар пайдасы/шығыны]+NovemberSales[Тасымалдау пайдасы/шығыны] -> Т0.00
C8: Қорытынды | D8: ="Сатылған тауарлар: "&SUBTOTAL(103,NovemberSales[Тауар сипаттамасы]) -> Сатылған тауарлар: 0 | E8: =SUBTOTAL(109,NovemberSales[Сатып алу бағасы]) -> Т0.00 | F8: =SUBTOTAL(109,NovemberSales[Сату бағасы]) -> Т0.00 | G8: =SUBTOTAL(109,NovemberSales[Желідегі төлемдер]) -> Т0.00 | H8: =SUBTOTAL(109,NovemberSales[Басқа төлемдері]) -> Т0.00 | I8: =SUBTOTAL(109,NovemberSales[Несиелік карталар төлемдері]) -> Т0.00 | J8: =SUBTOTAL(109,NovemberSales[Жеткізу төлемдері]) -> Т0.00 | K8: =SUBTOTAL(109,NovemberSales[Жеткізу төлемдері2]) -> Т0.00 | L8: =SUBTOTAL(109,NovemberSales[Сатулар пайдасы/шығыны]) -> Т0.00 | M8: =SUBTOTAL(109,NovemberSales[Тасымалдау пайдасы/шығыны]) -> Т0.00 | N8: =SUBTOTAL(109,NovemberSales[Жалпы пайда/шығын]) -> Т0.00
A9: Пайда/шығын бағыты

Sheet Желтоқсан
A1: ЖЕЛТОҚСАН
A2: Желідегі сатулар | C2: Аукцион идентификаторы | D2: Тауар сипаттамасы | E2: Сатып алу бағасы | F2: Сату бағасы | G2: Желідегі төлемдер | H2: Басқа төлемдері | I2: Несиелік карталар төлемдері | J2: Жеткізу төлемдері | K2: Жеткізу төлемдері2 | L2: Сатулар пайдасы/шығыны | M2: Тасымалдау пайдасы/шығыны | N2: Жалпы пайда/шығын
A3: Жыл | M3: =DecemberSales[Жеткізу төлемдері]-DecemberSales[Жеткізу төлемдері2] -> Т0.00 | N3: =DecemberSales[Сатулар пайдасы/шығыны]+DecemberSales[Тасымалдау пайдасы/шығыны] -> Т0.00
A4: =SalesYear -> 2012 | M4: =DecemberSales[Жеткізу төлемдері]-DecemberSales[Жеткізу төлемдері2] -> Т0.00 | N4: =DecemberSales[Сатулар пайдасы/шығыны]+DecemberSales[Тасымалдау пайдасы/шығыны] -> Т0.00
M5: =DecemberSales[Жеткізу төлемдері]-DecemberSales[Жеткізу төлемдері2] -> Т0.00 | N5: =DecemberSales[Сатулар пайдасы/шығыны]+DecemberSales[Тасымалдау пайдасы/шығыны] -> Т0.00
A6: Жалпы пайда/шығын | M6: =DecemberSales[Жеткізу төлемдері]-DecemberSales[Жеткізу төлемдері2] -> Т0.00 | N6: =DecemberSales[Сатулар пайдасы/шығыны]+DecemberSales[Тасымалдау пайдасы/шығыны] -> Т0.00
A7: =DecemberSales[[#Totals],[Жалпы пайда/шығын]] -> Т0.00 | M7: =DecemberSales[Жеткізу төлемдері]-DecemberSales[Жеткізу төлемдері2] -> Т0.00 | N7: =DecemberSales[Сатулар пайдасы/шығыны]+DecemberSales[Тасымалдау пайдасы/шығыны] -> Т0.00
C8: Қорытынды | D8: ="Сатылған тауарлар: "&SUBTOTAL(103,DecemberSales[Тауар сипаттамасы]) -> Сатылған тауарлар: 0 | E8: =SUBTOTAL(109,DecemberSales[Сатып алу бағасы]) -> Т0.00 | F8: =SUBTOTAL(109,DecemberSales[Сату бағасы]) -> Т0.00 | G8: =SUBTOTAL(109,DecemberSales[Желідегі төлемдер]) -> Т0.00 | H8: =SUBTOTAL(109,DecemberSales[Басқа төлемдері]) -> Т0.00 | I8: =SUBTOTAL(109,DecemberSales[Несиелік карталар төлемдері]) -> Т0.00 | J8: =SUBTOTAL(109,DecemberSales[Жеткізу төлемдері]) -> Т0.00 | K8: =SUBTOTAL(109,DecemberSales[Жеткізу төлемдері2]) -> Т0.00 | L8: =SUBTOTAL(109,DecemberSales[Сатулар пайдасы/шығыны]) -> Т0.00 | M8: =SUBTOTAL(109,DecemberSales[Тасымалдау пайдасы/шығыны]) -> Т0.00 | N8: =SUBTOTAL(109,DecemberSales[Жалпы пайда/шығын]) -> Т0.00
A9: Пайда/шығын бағыты

Sheet Осы жылғы жиынтық
A1: Осы жылғы
A2: Жиынтық | C2: Пайда/шығын | H2: Осы жылғы пайда/шығын
A3: Жыл | H3: Ай | I3: Сатулар пайдасы/шығыны | J3: Тасымалдау пайдасы/шығыны | K3: Жалпы пайда/шығын
A4: =SalesYear -> 2012 | H4: Қаңтар | I4: =JanuarySales[[#Totals],[Сатулар пайдасы/шығыны]] -> Т79.50 | J4: =JanuarySales[[#Totals],[Тасымалдау пайдасы/шығыны]] -> Т9.50 | K4: =IF(AND(YTDSummary[[#This Row],[Сатулар пайдасы/шығыны]]<>"",YTDSummary[[#This Row],[Тасымалдау пайдасы/шығыны]]<>""),YTDSummary[[#This Row],[Сатулар пайдасы/шығыны]]+YTDSummary[[#This Row],[Тасымалдау пайдасы/шығыны]],"") -> Т89.00
H5: Ақпан | I5: =FebruarySales[[#Totals],[Сатулар пайдасы/шығыны]] -> Т212.30 | J5: =FebruarySales[[#Totals],[Тасымалдау пайдасы/шығыны]] -> Т12.30 | K5: =IF(AND(YTDSummary[[#This Row],[Сатулар пайдасы/шығыны]]<>"",YTDSummary[[#This Row],[Тасымалдау пайдасы/шығыны]]<>""),YTDSummary[[#This Row],[Сатулар пайдасы/шығыны]]+YTDSummary[[#This Row],[Тасымалдау пайдасы/шығыны]],"") -> Т224.60
A6: Айлық сатулар бағыты: | H6: Наурыз | I6: =MarchSales[[#Totals],[Сатулар пайдасы/шығыны]] -> Т0.00 | J6: =MarchSales[[#Totals],[Тасымалдау пайдасы/шығыны]] -> Т0.00 | K6: =IF(AND(YTDSummary[[#This Row],[Сатулар пайдасы/шығыны]]<>"",YTDSummary[[#This Row],[Тасымалдау пайдасы/шығыны]]<>""),YTDSummary[[#This Row],[Сатулар пайдасы/шығыны]]+YTDSummary[[#This Row],[Тасымалдау пайдасы/шығыны]],"") -> Т0.00
H7: Сәуір | I7: =AprilSales[[#Totals],[Сатулар пайдасы/шығыны]] -> Т0.00 | J7: =AprilSales[[#Totals],[Тасымалдау пайдасы/шығыны]] -> Т0.00 | K7: =IF(AND(YTDSummary[[#This Row],[Сатулар пайдасы/шығыны]]<>"",YTDSummary[[#This Row],[Тасымалдау пайдасы/шығыны]]<>""),YTDSummary[[#This Row],[Сатулар пайдасы/шығыны]]+YTDSummary[[#This Row],[Тасымалдау пайдасы/шығыны]],"") -> Т0.00
H8: Мамыр | I8: =MaySales[[#Totals],[Сатулар пайдасы/шығыны]] -> Т0.00 | J8: =MaySales[[#Totals],[Тасымалдау пайдасы/шығыны]] -> Т0.00 | K8: =IF(AND(YTDSummary[[#This Row],[Сатулар пайдасы/шығыны]]<>"",YTDSummary[[#This Row],[Тасымалдау пайдасы/шығыны]]<>""),YTDSummary[[#This Row],[Сатулар пайдасы/шығыны]]+YTDSummary[[#This Row],[Тасымалдау пайдасы/шығыны]],"") -> Т0.00
H9: Маусым | I9: =JuneSales[[#Totals],[Сатулар пайдасы/шығыны]] -> Т0.00 | J9: =JuneSales[[#Totals],[Тасымалдау пайдасы/шығыны]] -> Т0.00 | K9: =IF(AND(YTDSummary[[#This Row],[Сатулар пайдасы/шығыны]]<>"",YTDSummary[[#This Row],[Тасымалдау пайдасы/шығыны]]<>""),YTDSummary[[#This Row],[Сатулар пайдасы/шығыны]]+YTDSummary[[#This Row],[Тасымалдау пайдасы/шығыны]],"") -> Т0.00
H10: Шілде | I10: =JulySales[[#Totals],[Сатулар пайдасы/шығыны]] -> Т0.00 | J10: =JulySales[[#Totals],[Тасымалдау пайдасы/шығыны]] -> Т0.00 | K10: =IF(AND(YTDSummary[[#This Row],[Сатулар пайдасы/шығыны]]<>"",YTDSummary[[#This Row],[Тасымалдау пайдасы/шығыны]]<>""),YTDSummary[[#This Row],[Сатулар пайдасы/шығыны]]+YTDSummary[[#This Row],[Тасымалдау пайдасы/шығыны]],"") -> Т0.00
H11: Тамыз | I11: =AugustSales[[#Totals],[Сатулар пайдасы/шығыны]] -> Т0.00 | J11: =AugustSales[[#Totals],[Тасымалдау пайдасы/шығыны]] -> Т0.00 | K11: =IF(AND(YTDSummary[[#This Row],[Сатулар пайдасы/шығыны]]<>"",YTDSummary[[#This Row],[Тасымалдау пайдасы/шығыны]]<>""),YTDSummary[[#This Row],[Сатулар пайдасы/шығыны]]+YTDSummary[[#This Row],[Тасымалдау пайдасы/шығыны]],"") -> Т0.00
H12: Қыркүйек | I12: =SeptemberSales[[#Totals],[Сатулар пайдасы/шығыны]] -> Т0.00 | J12: =SeptemberSales[[#Totals],[Тасымалдау пайдасы/шығыны]] -> Т0.00 | K12: =IF(AND(YTDSummary[[#This Row],[Сатулар пайдасы/шығыны]]<>"",YTDSummary[[#This Row],[Тасымалдау пайдасы/шығыны]]<>""),YTDSummary[[#This Row],[Сатулар пайдасы/шығыны]]+YTDSummary[[#This Row],[Тасымалдау пайдасы/шығыны]],"") -> Т0.00
H13: Қазан | I13: =OctoberSales[[#Totals],[Сатулар пайдасы/шығыны]] -> Т0.00 | J13: =OctoberSales[[#Totals],[Тасымалдау пайдасы/шығыны]] -> Т0.00 | K13: =IF(AND(YTDSummary[[#This Row],[Сатулар пайдасы/шығыны]]<>"",YTDSummary[[#This Row],[Тасымалдау пайдасы/шығыны]]<>""),YTDSummary[[#This Row],[Сатулар пайдасы/шығыны]]+YTDSummary[[#This Row],[Тасымалдау пайдасы/шығыны]],"") -> Т0.00
H14: Қараша | I14: =NovemberSales[[#Totals],[Сатулар пайдасы/шығыны]] -> Т0.00 | J14: =NovemberSales[[#Totals],[Тасымалдау пайдасы/шығыны]] -> Т0.00 | K14: =IF(AND(YTDSummary[[#This Row],[Сатулар пайдасы/шығыны]]<>"",YTDSummary[[#This Row],[Тасымалдау пайдасы/шығыны]]<>""),YTDSummary[[#This Row],[Сатулар пайдасы/шығыны]]+YTDSummary[[#This Row],[Тасымалдау пайдасы/шығыны]],"") -> Т0.00
H15: Желтоқсан | I15: =DecemberSales[[#Totals],[Сатулар пайдасы/шығыны]] -> Т0.00 | J15: =DecemberSales[[#Totals],[Тасымалдау пайдасы/шығыны]] -> Т0.00 | K15: =IF(AND(YTDSummary[[#This Row],[Сатулар пайдасы/шығыны]]<>"",YTDSummary[[#This Row],[Тасымалдау пайдасы/шығыны]]<>""),YTDSummary[[#This Row],[Сатулар пайдасы/шығыны]]+YTDSummary[[#This Row],[Тасымалдау пайдасы/шығыны]],"") -> Т0.00
H16: Қорытынды | I16: =SUBTOTAL(109,YTDSummary[Сатулар пайдасы/шығыны]) -> Т291.80 | J16: =SUBTOTAL(109,YTDSummary[Тасымалдау пайдасы/шығыны]) -> Т21.80 | K16: =SUBTOTAL(109,YTDSummary[Жалпы пайда/шығын]) -> Т313.60
